bitfinex-derivatives/quotes_ETHF0:USTF0_20241104
["timestamp","ask_amount","ask_price","bid_price","bid_amount"]
[1730738577977,4.128,2422.3,2421.5,0.207]
[1730738578282,3.62182608,2421.7,2421.6,0.55120556]
[1730738578678,3.62182608,2421.7,2421.4,2.03170855]
[1730738578679,10.54615608,2421.7,2421.2,3.3054]
[1730738578876,3.20875608,2421.5,2421.3,0.5512239]
[1730738579076,0.41317,2421.1,2420.8,1.61858855]
[1730738579277,0.41317,2421.1,2420.2,2.69764759]
[1730738579278,0.41324,2420.7,2420.6,1.61866233]
[1730738579478,0.41324,2420.7,2419.8,0.207]
[1730738579479,3.20875608,2420.6,2419.8,0.207]
[1730738579781,3.20875608,2420.6,2419.9,1.03342]
[1730738579782,4.31685608,2420.5,2419.9,1.03342]
[1730738579976,4.31685608,2420.5,2419.6,0.207]
[1730738579977,4.31685608,2420.5,2419.8,3.2078]
[1730738580278,6.41655608,2420.2,2419.6,0.207]
[1730738580478,6.41655608,2420.2,2419.5,3.2078]
[1730738580674,0.41345,2419.5,2419.2,3.62129]
[1730738580877,3.20875608,2419.6,2419.3,1.45902045]
[1730738581088,3.20875608,2419.6,2418.7,1.03393]
[1730738581089,6.41655608,2419.4,2418.7,2.36511807]
[1730738581381,3.2078,2419.7,2419.3,0.41347]
[1730738581578,4.73025608,2419.8,2418.7,0.207]
[1730738581579,3.2078,2419.4,2418.7,0.207]
[1730738581881,3.20875608,2419.2,2418.8,1.45500921]
[1730738582079,9.62531216,2418.9,2418.3,0.207]
[1730738582379,3.2078,2418.9,2418.7,0.41357]
[1730738582680,3.20875608,2419.1,2418.2,3.2078]
[1730738582881,3.20875608,2419.4,2419.1,0.41351]
[1730738583178,3.20875608,2419.4,2418.5,0.207]
[1730738583376,7.17911233,2419.5,2418.6,4.65666778]
[1730738583585,7.17911233,2419.5,2418.6,3.2078]
[1730738583586,3.97131233,2419.2,2418.6,3.2078]
[1730738583786,3.97131233,2419.4,2418.6,3.2078]
[1730738583976,3.97131233,2419.4,2418.9,3.2078]
[1730738584278,3.97131233,2419.2,2418.7,3.2078]
[1730738584482,3.97131233,2419.4,2418.7,3.2078]
[1730738584670,3.97131233,2419.1,2418.2,3.4148]
[1730738584876,3.97131233,2419.1,2418.5,3.2078]
[1730738585070,3.2078,2418.8,2418.2,3.2078]
[1730738585287,3.2078,2418.8,2418.4,0.41363]
[1730738585583,0.62047,2419.4,2418.9,0.41354]
[1730738585775,3.62126,2419.5,2419.0,0.41353]
[1730738585971,1.62998621,2419.5,2419.0,3.2078]
[1730738586178,1.53092,2419.7,2419.2,0.41349]
[1730738586377,0.15749795,2419.7,2419.0,3.2078]
[1730738586574,0.15749795,2419.7,2419.0,3.62133]
[1730738586575,0.41345,2419.5,2419.0,3.62133]
[1730738586781,0.15749795,2419.7,2419.0,3.2078]
[1730738587084,0.41343,2419.6,2419.2,3.2078]
[1730738587281,0.41346,2419.5,2419.0,0.41352]
[1730738587487,0.41352,2419.1,2418.9,3.2078]
[1730738587783,0.41352,2419.1,2418.1,1.0471]
[1730738587784,0.41358,2418.8,2418.3,0.41365]
[1730738587977,0.41358,2418.8,2418.1,4.2714]
[1730738587978,3.97131233,2418.8,2418.1,4.2714]
[1730738588285,0.41359,2418.7,2418.3,3.2078]
[1730738588580,40.8,2418.7,2418.3,3.62144]
[1730738588781,40.8,2418.7,2418.3,3.2078]
[1730738588978,3.97131233,2419.0,2418.3,3.2078]
[1730738589171,0.41359,2418.7,2418.3,3.2078]
[1730738589571,40.8,2418.6,2418.3,3.2078]
[1730738589981,40.8,2418.6,2418.2,3.2078]
[1730738590384,41.21362,2418.6,2418.2,3.62146]
[1730738590581,0.41362,2418.5,2418.2,3.2078]
[1730738590779,0.41363,2418.5,2418.2,3.2078]
[1730738590982,0.41363,2418.5,2418.1,3.62148]
[1730738591282,0.41362,2418.5,2418.2,3.2078]
[1730738591485,3.2078,2420.7,2418.5,3.2078]
[1730738591693,3.2078,2420.7,2418.3,3.97131233]
[1730738591694,3.2078,2420.7,2420.0,3.2078]
[1730738591988,3.2078,2420.7,2419.8,3.97131233]
[1730738591989,0.41325,2420.7,2420.3,3.2078]
[1730738592187,0.41327,2420.6,2420.3,3.2078]
[1730738592585,44.77131233,2421.2,2420.3,3.2078]
[1730738593086,44.77131233,2421.2,2420.4,3.2078]
[1730738593475,0.41321,2420.9,2420.4,3.62109]
[1730738593679,0.41325,2420.7,2420.4,3.2078]
[1730738593878,0.41323,2420.8,2420.4,3.62109]
[1730738594081,0.41325,2420.7,2420.4,3.2078]
[1730738594280,44.77131233,2421.2,2420.3,3.2078]
[1730738594481,44.77131233,2421.2,2420.3,3.6211]
[1730738594685,3.2078,2421.1,2420.3,3.62111]
[1730738594983,0.41325,2420.7,2420.3,3.62111]
[1730738595186,0.41322,2420.9,2420.4,0.41329]
[1730738595387,0.41325,2420.7,2420.3,3.6211]
[1730738595589,0.41323,2420.8,2420.4,0.41329]
[1730738595886,0.41326,2420.6,2420.3,3.2078]
[1730738596180,0.41326,2420.7,2420.3,3.62111]
[1730738596388,40.8,2421.2,2420.4,0.41329]
[1730738596595,0.41324,2420.8,2420.4,0.41329]
[1730738596781,40.8,2421.2,2420.4,0.41329]
[1730738596977,0.4132,2421.0,2420.4,0.41329]
[1730738597187,40.8,2421.2,2420.3,3.2078]
[1730738597387,0.41323,2420.8,2420.4,0.41329]
[1730738597683,0.41322,2420.9,2420.4,0.41329]
[1730738597884,0.02909,2421.8,2421.7,0.41307]
[1730738598079,0.4129,2422.8,2422.3,0.41297]
[1730738598281,0.41293,2422.6,2422.4,3.2078]
[1730738598591,7.17911233,2423.3,2422.1,3.2078]
[1730738598883,0.41292,2422.7,2422.1,0.413]
[1730738599083,3.2078,2423.0,2422.4,3.2078]
[1730738599291,41.83199174,2422.5,2422.4,3.2078]
[1730738599693,41.83199174,2422.5,2422.2,0.41298]
[1730738599884,41.83199174,2422.5,2422.3,3.2078]
[1730738600079,41.83199174,2422.5,2422.1,0.413]
[1730738600285,41.83199174,2422.5,2422.4,3.2078]
[1730738601188,41.83199174,2422.5,2422.0,3.2078]
[1730738601189,45.95999174,2422.5,2422.0,3.2078]
[1730738601386,42.24494174,2422.5,2422.0,3.62081]
[1730738601585,41.83199174,2422.5,2422.0,3.62081]
[1730738601794,42.24493174,2422.5,2422.0,3.62081]
[1730738602088,42.24494174,2422.5,2422.0,3.62081]
[1730738602289,4.128,2422.4,2421.7,3.2078]
[1730738602491,3.97131233,2421.9,2421.3,0.207]
[1730738602784,3.2078,2422.3,2420.8,0.207]
[1730738602785,7.17911233,2421.4,2420.8,0.207]
[1730738602988,3.97131233,2421.1,2420.9,0.4132]
[1730738603190,3.97131233,2421.1,2420.5,3.2078]
[1730738603390,3.97131233,2421.1,2420.8,3.62102]
[1730738603893,3.97131233,2421.1,2420.8,3.62103]
[1730738604092,4.38446233,2421.3,2420.9,0.4132]
[1730738604292,3.97131233,2421.3,2420.8,3.2078]
[1730738604880,0.4132,2421.0,2420.8,3.2078]
[1730738605190,3.97131233,2421.3,2420.8,3.2078]
[1730738605496,40.8,2420.9,2420.8,3.2078]
[1730738605681,4.46470181,2421.3,2420.8,3.2078]
[1730738605995,0.41319,2421.1,2420.8,3.2078]
[1730738606292,0.4132,2421.0,2420.8,3.2078]
[1730738606689,40.8,2420.9,2420.8,3.2078]
[1730738607782,41.21321,2420.9,2420.8,3.2078]
[1730738608387,40.8,2420.9,2420.8,3.2078]
[1730738609209,41.21321,2420.9,2420.8,3.2078]
[1730738609590,40.8,2420.9,2420.8,3.2078]
[1730738610595,40.8,2420.9,2420.8,3.62103]
[1730738610897,40.8,2420.9,2420.8,3.2078]
[1730738611291,41.21321,2420.9,2420.8,3.2078]
[1730738611491,40.8,2420.9,2420.8,3.2078]
[1730738611791,0.4132,2421.0,2420.8,3.2078]
[1730738611993,7.67250181,2421.7,2420.8,3.2078]
[1730738612192,0.41315,2421.3,2421.1,3.2078]
[1730738612392,0.41312,2421.5,2421.1,3.62097]
[1730738612598,0.41313,2421.4,2421.1,3.2078]
[1730738612797,40.8,2421.6,2421.1,3.2078]
[1730738612997,40.8,2421.6,2421.4,3.2078]
[1730738613194,40.8,2421.6,2420.8,3.2078]
[1730738613502,0.41315,2421.3,2421.1,3.2078]
[1730738614200,0.41316,2421.2,2421.1,3.2078]
[1730738614399,0.41315,2421.3,2421.1,3.2078]
[1730738614603,0.41314,2421.4,2421.1,3.62097]
[1730738614796,0.41314,2421.3,2421.1,3.2078]
[1730738615400,0.41316,2421.2,2421.1,3.2078]
[1730738616100,40.8,2421.6,2421.1,3.2078]
[1730738616307,0.41321,2420.9,2420.8,3.2078]
[1730738616597,0.41329,2420.4,2420.3,3.2078]
[1730738617010,4.46470181,2420.5,2420.3,3.2078]
[1730738617011,0.41328,2420.5,2420.3,3.2078]
[1730738617302,40.8,2420.4,2420.3,3.62111]
[1730738619505,40.8,2420.4,2420.3,7.75311]
[1730738619696,1.0344,2421.0,2420.7,0.41324]
[1730738619901,4.46470181,2421.2,2420.6,3.2078]
[1730738619902,0.41319,2421.1,2420.6,3.2078]
[1730738620207,40.8,2421.0,2420.4,3.2078]
[1730738620401,0.41322,2420.9,2420.7,3.2078]
[1730738620598,0.41322,2420.9,2420.7,3.62104]
[1730738620804,40.8,2421.0,2420.7,3.2078]
[1730738620994,0.41321,2420.9,2420.7,3.2078]
[1730738621205,41.2132,2421.0,2420.8,0.41322]
[1730738621906,41.21321,2421.0,2420.7,3.2078]
[1730738622103,0.41322,2420.9,2420.7,3.2078]
[1730738622305,40.8,2421.0,2420.8,0.41322]
[1730738622306,41.21321,2421.0,2420.8,0.41322]
[1730738622501,0.41321,2420.9,2420.7,3.62103]
[1730738622805,0.41323,2420.8,2420.7,3.2078]
[1730738623009,0.41322,2420.9,2420.7,3.62104]
[1730738623309,0.41323,2420.8,2420.7,3.2078]
[1730738623510,40.8,2421.0,2420.7,3.2078]
[1730738623710,40.8,2421.0,2420.9,0.41321]
[1730738624204,40.8,2421.0,2420.9,4.54361]
[1730738624605,0.41314,2421.4,2421.2,0.41315]
[1730738624800,0.41314,2421.4,2421.3,3.2078]
[1730738625009,4.46470181,2421.5,2420.7,3.2078]
[1730738625212,4.46470181,2421.5,2421.0,3.2078]
[1730738625708,0.41317,2421.1,2420.5,1.03318]
[1730738625907,40.8,2421.4,2421.0,3.2078]
[1730738626209,0.41317,2421.2,2421.0,3.2078]
[1730738626511,0.41317,2421.1,2421.0,3.2078]
[1730738627517,40.8,2421.4,2421.0,3.2078]
[1730738627808,0.41317,2421.1,2421.0,3.2078]
[1730738629205,0.41317,2421.1,2420.8,0.41322]
[1730738629206,0.4132,2421.0,2420.7,3.2078]
[1730738629408,0.4132,2421.0,2420.8,0.41322]
[1730738629609,41.83283,2421.4,2420.7,3.62103]
[1730738629804,1.03286,2421.3,2420.7,3.62103]
[1730738630110,0.41322,2420.9,2420.7,3.62103]
[1730738630510,0.41321,2421.0,2420.7,3.62103]
[1730738630806,0.41323,2420.8,2420.7,3.2078]
[1730738631211,0.41323,2420.8,2420.0,1.87150142]
[1730738631212,4.1312,2420.8,2420.0,3.4148]
[1730738631404,0.41329,2420.5,2420.3,0.41331]
[1730738631809,40.8,2420.4,2420.0,3.2078]
[1730738632029,40.8,2420.4,2420.3,0.41331]
[1730738632617,40.8,2420.4,2420.3,3.62111]
[1730738633307,40.8,2420.4,2420.2,0.41332]
[1730738633612,40.8,2420.4,2420.3,0.41331]
[1730738633916,41.21329,2420.4,2420.2,0.41332]
[1730738634117,40.8,2420.4,2420.3,3.2078]
[1730738634416,0.41332,2420.3,2420.1,0.41334]
[1730738634805,40.8,2420.4,2420.0,3.2078]
[1730738635002,40.8,2420.4,2420.1,0.41333]
[1730738635208,0.41332,2420.3,2420.1,0.41333]
[1730738635514,41.21331,2420.4,2420.2,0.41333]
[1730738635718,41.21331,2420.4,2420.3,3.2078]
[1730738635910,40.8,2420.4,2420.3,3.2078]
[1730738636111,41.21329,2420.4,2420.3,3.2078]
[1730738637414,41.21329,2420.4,2420.3,3.62111]
[1730738637415,40.8,2420.4,2420.3,3.62111]
[1730738637817,3.2078,2420.9,2420.3,3.62111]
[1730738637818,0.41328,2420.5,2420.3,3.62111]
[1730738638019,0.41329,2420.5,2420.3,3.6211]
[1730738638317,40.8,2420.7,2420.3,3.6211]
[1730738638511,0.41327,2420.6,2420.4,0.41328]
[1730738638711,0.41323,2420.8,2420.3,3.6211]
[1730738639018,40.8,2420.7,2420.3,3.2078]
[1730738639218,40.8,2420.7,2420.6,3.2078]
[1730738639415,40.8,2420.7,2420.6,0.41326]
[1730738639606,41.21325,2420.7,2420.5,0.41326]
[1730738639813,40.8,2420.7,2420.4,1.61628662]
[1730738640010,0.4133,2420.4,2420.2,5.23740662]
[1730738640220,0.41331,2420.3,2420.2,3.2078]
[1730738640715,0.41331,2420.3,2419.9,6.09070662]
[1730738640716,3.9681482,2420.5,2419.9,4.47442]
[1730738641014,0.41336,2420.0,2419.9,4.47442]
[1730738641717,3.9681482,2420.2,2420.1,0.41335]
[1730738641718,0.41334,2420.2,2420.1,0.41335]
[1730738641926,0.4133,2420.4,2420.3,0.4133]
[1730738642414,0.4133,2420.4,2420.3,3.6211]
[1730738642621,0.41336,2420.0,2419.9,6.09070662]
[1730738642815,0.41336,2420.0,2419.9,4.47442]
[1730738643018,0.41336,2420.0,2419.1,1.61628662]
[1730738643019,0.4135,2419.3,2419.1,1.61628662]
[1730738643321,0.41349,2419.3,2419.1,0.41352]
[1730738643520,44.7681482,2419.2,2418.9,3.2078]
[1730738643709,0.41353,2419.0,2418.9,3.2078]
[1730738644618,0.41362,2418.5,2418.3,1.61628662]
[1730738644820,0.41362,2418.5,2418.2,1.0362]
[1730738644821,3.9681482,2418.9,2418.2,1.0362]
[1730738645023,6.1030482,2419.1,2418.7,0.41358]
[1730738645324,0.41356,2418.9,2418.6,0.4136]
[1730738645618,0.41354,2419.0,2418.6,0.4136]
[1730738645816,0.41355,2418.9,2418.6,0.4136]
[1730738646008,0.41356,2418.9,2418.5,3.2078]
[1730738646208,0.41356,2418.9,2418.5,3.62141]
[1730738646419,6.1030482,2419.1,2418.5,3.2078]
[1730738646926,6.1030482,2419.1,2418.3,1.0702]
[1730738646927,3.9681482,2418.8,2418.3,1.0702]
[1730738647117,3.9681482,2418.8,2418.3,1.48385]
[1730738647422,0.4136,2418.6,2418.5,3.2078]
[1730738647716,41.83379,2419.2,2418.5,3.2078]
[1730738647717,40.8,2419.2,2418.5,3.2078]
[1730738647915,3.9681482,2419.6,2418.9,3.2078]
[1730738648111,3.9681482,2419.6,2419.3,3.2078]
[1730738648112,0.41347,2419.4,2419.3,3.2078]
[1730738648616,0.41338,2419.9,2419.3,7.3414]
[1730738648921,2.1476,2420.2,2419.8,3.2078]
[1730738648922,4.9955482,2420.2,2419.8,3.2078]
[1730738649115,4.9955482,2420.2,2419.7,0.41341]
[1730738649309,0.41337,2420.0,2419.8,3.2078]
[1730738649624,0.54127,2420.1,2419.8,3.2078]
[1730738649916,0.41337,2420.0,2419.8,3.2078]
[1730738650114,0.41338,2419.9,2419.8,3.2078]
[1730738650817,0.54127,2420.1,2419.8,3.62119]
[1730738651022,0.12792,2420.1,2419.9,0.41337]
[1730738651413,0.12792,2420.1,2419.8,3.2078]
[1730738651609,0.12792,2420.1,2419.9,0.41337]
[1730738651824,0.12792,2420.1,2419.8,3.2078]
[1730738652015,0.12792,2420.1,2420.0,0.41336]
[1730738652316,0.12792,2420.1,2420.0,4.54536]
[1730738652815,0.12792,2420.1,2420.0,0.41336]
[1730738653116,0.12792,2420.1,2420.0,4.54536]
[1730738654321,0.41322,2420.9,2420.6,0.41326]
[1730738654528,0.41321,2421.0,2420.8,3.2078]
[1730738654723,40.8,2421.1,2420.8,3.2078]
[1730738655015,2.06147,2421.6,2420.8,3.2078]
[1730738655016,0.41312,2421.5,2421.2,0.41316]
[1730738655417,1.0287,2421.6,2420.8,3.2078]
[1730738655616,40.8,2421.4,2421.2,0.41315]
[1730738655922,40.8,2421.4,2421.1,3.62097]
[1730738655923,41.21312,2421.4,2421.1,3.62097]
[1730738656215,40.8,2421.4,2421.1,3.2078]
[1730738656428,0.41316,2421.2,2421.1,3.2078]
[1730738657519,4.3812982,2421.3,2421.1,3.2078]
[1730738657719,0.41316,2421.2,2421.1,3.2078]
[1730738661118,0.41321,2420.9,2420.8,3.2078]
[1730738661719,4.54361,2420.9,2420.8,3.2078]
[1730738662029,1.4463,2420.8,2419.9,3.4148]
[1730738662224,0.41335,2420.1,2419.9,3.2078]
[1730738662522,40.8,2420.0,2419.9,3.62117]
[1730738662719,41.21336,2420.0,2419.9,3.2078]
[1730738662918,40.8,2420.0,2419.9,3.2078]
[1730738664416,40.8,2420.0,2419.7,0.41341]
[1730738664727,40.8,2420.0,2419.6,1.0948]
[1730738664728,40.8,2420.0,2419.8,3.62119]
[1730738665330,40.8,2420.0,2419.9,4.54618]
[1730738665526,0.4133,2420.4,2419.8,7.3406]
[1730738665727,0.41328,2420.5,2420.3,3.62111]
[1730738666026,3.2078,2420.9,2420.3,3.62111]
[1730738666027,40.8,2420.4,2420.3,3.62111]
[1730738666217,3.2078,2420.9,2419.8,4.82067963]
[1730738666422,0.41332,2420.3,2420.1,0.41334]
[1730738666628,40.8,2420.6,2420.1,0.41334]
[1730738666829,0.41331,2420.3,2420.1,3.62114]
[1730738667036,0.41329,2420.5,2420.2,0.41332]
[1730738667229,0.41329,2420.5,2420.3,3.62111]
[1730738667432,0.41329,2420.5,2420.3,3.2078]
[1730738667621,0.41329,2420.5,2420.3,3.62111]
[1730738667821,40.8,2420.6,2420.3,3.62111]
[1730738668027,40.8,2420.6,2420.5,0.41328]
[1730738668926,1.03271645,2420.8,2420.5,4.1312]
[1730738669123,1.44594645,2420.8,2420.6,0.41326]
[1730738669321,1.03271645,2420.8,2420.7,3.2078]
[1730738669531,41.83271645,2420.8,2420.7,3.2078]
[1730738669730,41.83271645,2420.8,2420.5,0.41327]
[1730738670029,41.83271645,2420.8,2420.6,3.2078]
[1730738670327,41.83271645,2420.8,2420.7,3.62104]
[1730738670633,1.03271645,2420.8,2420.7,0.41324]
[1730738670827,1.03271645,2420.8,2420.7,7.75224]
[1730738671932,0.41271912,2420.8,2420.7,7.75224]
[1730738672625,1.0473,2421.5,2420.7,11.3071482]
[1730738672833,0.41312,2421.4,2421.2,0.41315]
[1730738673030,40.8,2421.3,2421.1,0.41317]
[1730738673237,40.8,2421.3,2421.2,3.2078]
[1730738673425,0.41308,2421.7,2421.4,0.41311]
[1730738673626,0.41308,2421.7,2421.5,3.2078]
[1730738674335,0.41307,2421.8,2421.5,3.6209]
[1730738674535,40.8,2421.9,2421.1,2.10854152]
[1730738674536,0.4131,2421.6,2421.3,0.41313]
[1730738674738,44.7681482,2421.9,2421.4,3.2078]
[1730738674929,0.4131,2421.6,2421.4,3.2078]
[1730738675127,0.41311,2421.5,2421.2,0.41315]
[1730738675336,0.41313,2421.4,2421.2,0.41316]
[1730738675533,0.41313,2421.4,2421.1,3.62097]
[1730738675534,0.41314,2421.4,2421.1,3.62097]
[1730738675839,0.41313,2421.4,2421.2,0.41316]
[1730738676024,0.41312,2421.5,2421.2,0.41316]
[1730738676232,0.41312,2421.5,2421.4,3.2078]
[1730738676933,0.41319,2421.0,2420.9,3.2078]
[1730738677738,42.27949,2421.0,2420.9,3.2078]
[1730738678139,40.8,2421.0,2420.9,7.75141]
[1730738678738,3.16525,2421.6,2421.0,0.41319]
[1730738678739,0.41317,2421.2,2421.0,0.41319]
[1730738678930,3.9681482,2421.4,2420.9,3.2078]
[1730738679135,0.41318,2421.1,2421.0,0.41319]
[1730738679330,7.1759482,2421.4,2420.9,3.621]
[1730738679532,0.41319,2421.0,2420.9,0.4132]
[1730738679733,8.2087882,2421.4,2420.5,1.03319]
[1730738679925,0.41318,2421.1,2420.9,3.621]
[1730738680129,0.41318,2421.1,2421.0,0.41319]
[1730738680335,3.9681482,2421.4,2421.0,3.2078]
[1730738680537,0.41314,2421.4,2421.2,3.62095]
[1730738680837,2.1325,2421.6,2420.5,4.28340152]
[1730738680838,2.1325,2421.6,2421.3,0.41314]
[1730738681038,2.5456,2421.6,2421.3,3.2078]
[1730738681238,40.8,2421.5,2421.4,0.41311]
[1730738681432,40.8,2421.5,2421.3,3.2078]
[1730738681635,41.21312,2421.5,2421.3,3.2078]
[1730738681834,41.21312,2421.5,2421.4,0.41312]
[1730738682031,0.41312,2421.4,2421.3,3.62093]
[1730738682333,0.41316,2421.3,2421.2,0.41316]
[1730738682547,0.41315,2421.3,2421.2,0.41316]
[1730738682726,0.41317,2421.2,2421.1,0.41317]
[1730738683037,0.41316,2421.3,2421.1,3.62097]
[1730738683232,40.8,2421.2,2421.1,3.62097]
[1730738683529,0.41318,2421.1,2421.0,3.62098]
[1730738683734,41.21317,2421.2,2421.0,3.62098]
[1730738683928,41.21316,2421.2,2421.0,3.2078]
[1730738684130,41.21316,2421.2,2421.0,3.62098]
[1730738684337,40.8,2421.2,2420.6,4.24095]
[1730738684555,40.8,2421.2,2421.0,3.62099]
[1730738684731,41.21317,2421.2,2421.0,3.2078]
[1730738684930,41.21317,2421.2,2421.1,0.41317]
[1730738684931,40.8,2421.2,2421.1,0.41317]
[1730738685331,40.8,2421.2,2421.1,4.54357]
[1730738685739,5.11977,2421.1,2420.3,3.23371959]
[1730738685935,4.08683,2420.7,2420.6,0.41325]
[1730738686438,3.2078,2421.0,2420.3,1.03327]
[1730738686644,4.50005,2420.9,2420.7,0.41324]
[1730738687639,4.08683,2420.9,2420.8,0.41323]
[1730738688435,41.21316,2421.2,2421.0,0.41318]
[1730738688643,4.08683,2421.1,2421.0,0.41318]
[1730738689841,4.08683,2421.1,2420.9,3.2078]
[1730738689842,0.4132,2421.0,2420.8,0.41322]
[1730738690136,0.41321,2420.9,2420.5,4.28340152]
[1730738690330,0.41321,2420.9,2420.7,0.41323]
[1730738690530,0.41321,2420.9,2420.5,1.07560152]
[1730738690736,4.08683,2420.9,2420.8,0.41322]
[1730738690940,4.08683,2420.9,2420.4,2.10884152]
[1730738691139,4.50005,2420.9,2420.7,0.41324]
[1730738691445,4.08683,2420.9,2420.4,1.07560152]
[1730738691643,4.08683,2420.5,2420.3,3.2078]
[1730738691939,4.08683,2420.4,2420.3,3.62111]
[1730738692134,4.08683,2420.6,2420.3,3.2078]
[1730738692335,4.08683,2420.6,2420.5,0.41328]
[1730738694541,4.08683,2420.6,2420.5,1.48888152]
[1730738695141,45.04034584,2421.2,2420.5,7.60969074]
[1730738695336,45.04034584,2421.2,2420.8,0.41321]
[1730738695337,4.08683,2420.9,2420.8,0.41321]
[1730738695534,4.08683,2420.9,2420.8,6.68604448]
[1730738695842,1.03254584,2421.2,2421.1,0.41317]
[1730738696036,5.11937584,2421.2,2421.1,1.49216823]
[1730738696235,5.11937584,2421.2,2421.1,2.40301852]
[1730738696542,5.11937584,2421.2,2421.1,5.61081852]
[1730738696850,5.11937584,2421.2,2421.1,4.02160582]
[1730738697340,5.11937584,2421.2,2421.1,3.27147048]
[1730738698143,10.53322988,2421.2,2421.1,1.98984852]
[1730738698347,13.32786988,2421.2,2420.8,1.07949792]
[1730738698644,4.08683,2420.9,2420.7,1.49273792]
[1730738698839,4.50006,2420.8,2420.7,1.07949792]
[1730738699140,4.50006,2420.8,2420.7,1.62278207]
[1730738699844,4.50006,2420.8,2420.7,3.07530264]
[1730738700051,4.50006,2420.8,2420.7,1.62278207]
[1730738700557,0.41328,2420.5,2420.4,1.07949792]
[1730738700731,0.41333,2420.2,2420.1,1.07949792]
[1730738700939,4.50016,2420.2,2420.1,2.03636617]
[1730738701237,44.88683,2420.2,2420.1,2.03636617]
[1730738701438,45.30016,2420.2,2420.1,1.62301617]
[1730738701638,45.30016,2420.2,2420.0,1.07949792]
[1730738701639,44.88683,2420.2,2420.0,1.07949792]
[1730738701944,4.08683,2420.0,2419.9,0.41338]
[1730738702146,4.08683,2420.0,2419.9,2.03661545]
[1730738702741,40.8,2420.2,2420.1,0.41335]
[1730738702937,44.88683,2420.2,2420.1,0.41335]
[1730738703133,44.88683,2420.2,2420.1,1.99518389]
[1730738703134,4.08683,2420.2,2420.1,1.99518389]
[1730738703339,4.08683,2420.2,2420.1,1.07943167]
[1730738703537,4.08683,2420.2,2419.8,1.07943167]
[1730738703740,3.2078,2420.3,2419.7,1.61924688]
[1730738703741,4.08683,2419.9,2419.7,1.07943167]
[1730738703939,4.08683,2419.8,2419.7,1.49284167]
[1730738704145,4.08683,2419.8,2419.7,2.03573828]
[1730738704344,4.08683,2419.8,2419.7,1.49273659]
[1730738704538,4.08683,2419.8,2419.7,0.41341]
[1730738704949,4.08683,2419.8,2419.7,1.49273659]
[1730738705142,4.08683,2419.8,2419.7,0.41341]
[1730738705841,4.08683,2419.8,2419.7,2.03533339]
[1730738706048,4.08683,2419.8,2419.7,0.41341]
[1730738710242,4.08683,2419.8,2419.6,3.2078]
[1730738710445,3.00750341,2419.2,2418.9,1.82624688]
[1730738710642,8.1009482,2419.7,2418.5,4.82704688]
[1730738710643,3.00750341,2419.0,2418.5,4.82704688]
[1730738710846,3.00750341,2418.6,2418.5,3.62142]
[1730738711753,3.00750341,2418.6,2418.5,3.2078]
[1730738711947,0.41366,2418.3,2418.0,0.4137]
[1730738712146,3.00750341,2418.1,2418.0,0.4137]
[1730738712544,3.9681482,2418.7,2418.0,0.4137]
[1730738712545,3.2078,2418.7,2418.1,1.03423]
[1730738712850,3.00750341,2418.6,2418.5,3.62142]
[1730738713546,40.8,2418.9,2418.5,0.41362]
[1730738713851,3.00750341,2418.9,2418.8,0.41357]
[1730738714247,40.8,2419.2,2418.6,1.03401]
[1730738714449,0.4135,2419.3,2419.0,0.41353]
[1730738714649,3.00750341,2419.1,2419.0,0.41353]
[1730738715051,3.00750341,2419.1,2418.9,0.41354]
[1730738715251,0.41351,2419.2,2418.9,0.41354]
[1730738715457,3.00750341,2419.0,2418.9,0.41354]
[1730738716153,3.42104341,2419.0,2418.8,3.2078]
[1730738716352,3.00750341,2418.9,2418.8,3.2078]
[1730738716548,3.00750341,2419.2,2419.0,0.41352]
[1730738716756,0.41349,2419.3,2419.0,0.41352]
[1730738716757,3.00750341,2419.1,2419.0,0.41352]
[1730738717456,3.2078,2419.4,2419.0,0.41352]
[1730738717655,40.8,2419.5,2419.2,0.41349]
[1730738717656,3.00750341,2419.3,2419.2,0.41349]
[1730738719153,40.8,2419.6,2419.2,0.41349]
[1730738719354,3.00750341,2419.4,2419.0,2.09844]
[1730738719559,3.00750341,2419.4,2419.3,0.41348]
[1730738720755,3.00750341,2419.4,2419.1,3.2078]
[1730738721060,3.00750341,2419.2,2419.0,1.0646]
[1730738721247,3.42101341,2419.2,2419.0,1.47813]
[1730738721454,3.00750341,2419.2,2419.0,1.47813]
[1730738721849,3.00750341,2419.2,2419.0,1.0646]
[1730738722159,3.42103341,2419.1,2418.8,3.62136]
[1730738722354,3.00750341,2419.0,2418.8,3.62136]
[1730738722758,3.00750341,2419.0,2418.9,0.41355]
[1730738722959,3.62125,2419.5,2419.2,0.41349]
[1730738723153,3.62125,2419.5,2418.9,1.03388]
[1730738723154,3.00750341,2419.3,2418.9,1.03388]
[1730738723354,3.00750341,2419.3,2419.2,0.41349]
[1730738723858,40.8,2419.7,2419.1,1.0338]
[1730738724061,40.8,2419.7,2419.2,2.19956]
[1730738724358,3.00750341,2419.6,2419.2,4.49414]
[1730738724654,3.00750341,2419.9,2419.5,3.9681482]
[1730738724858,0.41329,2420.5,2420.2,0.41332]
[1730738725052,4.3299,2420.6,2420.2,0.41332]
[1730738725053,3.00750341,2420.3,2420.2,0.41333]
[1730738725254,4.3299,2420.6,2420.2,3.2078]
[1730738725469,3.00750341,2420.3,2420.0,1.03341]
[1730738725665,3.00750341,2420.5,2420.4,0.41329]
[1730738726351,1.13230199,2421.0,2420.9,0.41321]
[1730738726547,0.01020199,2421.0,2420.9,0.41321]
[1730738726952,0.01020199,2421.0,2420.9,3.62101]